Cogmind - Beta 16 @@@ ROGUE MODE // 2025.11.02 @ 12:37:44 Player: ArsMori Result: Destroyed by G-34 Mercenary with Small Laser Performance ------------- Evolutions (1) 500 Regions Visited (2) 400 Robots Destroyed (25) 125 Value Destroyed (530) 530 Prototype IDs (1) 20 Alien Tech Used (0) 0 Bonus (0) 0 TOTAL SCORE: 1575 Bonus ------- None Cogmind --------- Core Integrity 0/400 Matter 83/400 Energy 100/100 System Corruption 0% Temperature Cool (6) Movement Treading (160) Location -9/Materials Parts ------- > --- POWER (1) -------- (None) > --- PROPULSION (4) --- Light Treads Light Treads > --- UTILITY (2) ------ Medium Storage Unit Medium Matter Pod > --- WEAPON (2) ------- (None) > --- INVENTORY (10) --- Heat Sink Small Storage Unit Huge Storage Unit Signal Interpreter Seismic Detector Light Armor Plating Mining Laser Peak State ------------ > --- POWER ------------ Heavy Ion Engine > --- PROPULSION ------- Wheel Wheel > --- UTILITY ---------- Small Storage Unit Medium Matter Pod > --- WEAPON ----------- Medium Laser Mini Grenade Launcher > --- INVENTORY -------- Ion Engine Compact Wheel Heat Sink Huge Storage Unit Signal Interpreter Seismic Detector Light Armor Plating Mining Laser [Rating: 10] Favorites ----------- Power Ion Engine Engine Ion Engine Propulsion Wheel Treads Light Treads Leg Aluminum Leg Wheel Wheel Utility Small Storage Unit Device Seismic Detector Storage Small Storage Unit Protection Light Armor Plating Weapon Medium Laser Energy Gun Medium Laser Ballistic Gun Assault Rifle Launcher Mini Grenade Launcher Build | -11 -10 -9 ------- Run | Yrd Mat Mat Slots Evolved 2 | . . 2 Power . | . . . Propulsion 2 | . . 2 Utility . | . . . Weapon . | . . . Parts Attached 21 | 8 6 7 Power 2 | 1 1 . Engine 2 | 1 1 . Core . | . . . Reactor . | . . . Propulsion 8 | 3 1 4 Treads 3 | . . 3 Leg 1 | . . 1 Wheel 4 | 3 1 . Hover . | . . . Flight . | . . . Utility 5 | 2 2 1 Device 1 | 1 . . Storage 3 | 1 1 1 Processor . | . . . Hackware . | . . . Protection 1 | . 1 . Artifact . | . . . Weapon 6 | 2 2 2 Energy Gun 1 | 1 . . Energy Cannon . | . . . Ballistic Gun 2 | 1 . 1 Ballistic Cannon . | . . . Launcher 3 | . 2 1 Special Weapon . | . . . Impact Weapon . | . . . Slashing Weapon . | . . . Piercing Weapon . | . . . Special Melee Weapon . | . . . Unidentified Prototypes 1 | . 1 . Parts Lost 9 | . . 9 Power 2 | . . 2 Propulsion 3 | . . 3 Utility . | . . . Weapon 4 | . . 4 Highest Loss Streak 3 | . . 3 To Critical Strikes . | . . . Average Backups 5 | . 7 7 Power . | . . . Propulsion . | . . . Utility 3 | . 4 5 Weapon 1 | . 1 1 Tool/Special . | . . . Unused Backups 4 | . . 4 Power . | . . . Propulsion . | . . . Utility 3 | . . 3 Weapon 1 | . . 1 Tool/Special . | . . . Average Slot Usage (%) 82 | . 100 62 Engine 11 | . 14 9 Treads 5 | . . 10 Leg 1 | . . 3 Wheel 16 | . 28 4 Device 1 | . 1 . Storage 22 | . 22 22 Protection 1 | . 3 . Energy Gun 9 | . 14 3 Ballistic Gun 3 | . 2 4 Launcher 8 | . 11 5 Peak Build Rating 10 | 7 10 10 Average Rating 7 | 4 8 7 On Entrance 5 | . 7 10 Avg Prop Armor Cover (%) 7 | . . 7 Naked Turns . | . . . Heaviest Build 20 | 15 18 20 Greatest Support 60 | 26 20 60 Greatest Overweight (x) 4 | . . 4 Average Overweight (x) . | . . . Largest Inventory Capacity 10 | 8 8 10 Average Capacity 8 | 7 8 8 Most Carried 8 | 3 8 8 Average Carried 6 | . 7 7 Final Capacity 10 | 8 8 10 Final Carried 8 | 2 8 7 Class Distribution -------------------- 87% | Mutant 12% | Scavenger-Mutant Dominant Class ---------------- Mutant | -10/Materials Mutant | -9/Materials Resources | -11 -10 -9 ----------- Run | Yrd Mat Mat Matter Collected 462 | 252 133 77 Remotely . | . . . Salvage Created 512 | 117 123 272 Parts 40 | 7 8 25 Haulers Intercepted 1 | . . 1 Recyclers Shooed 2 | . 1 1 Parts Field Recycled . | . . . Retrieved Matter . | . . . Parts Self-Destructed . | . . . Prevented . | . . . Parts Restored . | . . . Kills | -11 -10 -9 ------- Run | Yrd Mat Mat Combat Hostiles Destroyed 16 | . 6 10 Melee 1 | . . 1 Guns 6 | . 3 3 AOE 9 | . 3 6 Classes Destroyed 9 | 2 3 4 Worker 1 | . . 1 Tunneler 2 | 2 . . Hauler 1 | . . 1 Recycler 2 | 1 . 1 Operator 1 | . . 1 Watcher 2 | . 1 1 Swarmer 7 | . 3 4 Grunt 5 | . 3 2 Sentry 4 | . . 4 Best Kill Streak 7 | 2 3 7 Combat Bots Only 6 | . 3 6 Max Kills in Single Turn 2 | 1 2 2 Gunslinging . | . . . Exploded 2 | . 2 2 Melee 1 | . . 1 Uniques/NPCs Destroyed . | . . . Combat | -11 -10 -9 -------- Run | Yrd Mat Mat Hostile Shots Fired 148 | . 24 124 Missed 45 | . 7 38 Hits 103 | . 17 86 Projectile 103 | . 17 86 Critical Strikes 1 | . . 1 Damage Taken 1441 | . 209 1232 Core 448 | . 40 408 Absorbed by Shields . | . . . Core Remaining (%) 92 | 100 84 . Volleys Fired 85 | 22 25 38 Largest 2 | 2 1 2 Hottest 80 | 70 50 80 Shots Fired 88 | 23 25 40 Gun 64 | 23 20 21 Cannon . | . . . Launcher 24 | . 5 19 Special . | . . . Kinetic 40 | 22 . 18 Thermal 24 | 1 20 3 Explosive 24 | . 5 19 Electromagnetic . | . . . Robot Hit Streak 5 | 4 5 5 Robot Miss Streak 4 | 2 3 4 Penetration Max . | . . . Secondary Targets . | . . . Shots Hit Robots 46 | 15 11 20 Core Hits 42 | 4 10 28 Critical Kills . | . . . Critical Parts Destroyed . | . . . Critical Strikes 1 | . 1 . Burn 1 | . 1 . Melee Attacks . | . . . Impact . | . . . Slashing . | . . . Piercing . | . . . Sneak Attacks . | . . . Combat Hostiles . | . . . Follow-up Attacks . | . . . Damage Inflicted 1752 | 184 492 1076 Guns 531 | 184 139 208 Cannons . | . . . Explosions 1184 | . 353 831 Melee . | . . . Ramming 37 | . . 37 Kinetic 367 | 184 . 183 Thermal 164 | . 139 25 Explosive 1184 | . 353 831 Electromagnetic . | . . . Impact . | . . . Slashing . | . . . Piercing . | . . . Highest Corruption . | . . . Average Corruption . | . . . Corruption Purged . | . . . Corruption Blocked . | . . . Overload Shots . | . . . Overflow Damage 84 | . 24 60 Projectiles . | . . . Explosions 84 | . 24 60 Melee . | . . . Knockbacks . | . . . Impact . | . . . Kinetic . | . . . Secondary . | . . . Self-Inflicted Damage 123 | . 36 87 Shots 4 | . 2 2 Rammed 18 | . . 18 Targets Rammed 19 | . . 19 Kicked . | . . . Crushed 1 | . . 1 Highest Temperature 149 | 9 149 60 Average Temperature 47 | 6 58 18 Received Heat Transfer 495 | . 78 417 Siege Activations . | . . . Martial Activations . | . . . Shielding Activations . | . . . Robots Disrupted . | . . . Combat Hostiles . | . . . Robots Corrupted . | . . . Combat Hostiles . | . . . Parts Fried . | . . . Impact Corruptions . | . . . Robots Melted . | . . . Combat Hostiles . | . . . Parts Melted 1 | . 1 . Heat Transferred 555 | . 481 74 Parts Sabotaged . | . . . Parts Stolen . | . . . Parts Stripped . | . . . Power Chain Reactions . | . . . Alert | -11 -10 -9 ------- Run | Yrd Mat Mat Maximum Alert Level 1 | . . 1 Low Security (%) 74 | 100 100 33 Level 1 25 | . . 66 Level 2 . | . . . Level 3 . | . . . Level 4 . | . . . Level 5 . | . . . High Security . | . . . Max Security . | . . . Peak Influence 267 | 5 92 267 Initial 29 | . . 29 Average 88 | 1 27 196 Influence Increases 644 | 15 210 419 Destroy 0b10 Robot/C 320 | . 120 200 Destroy 0b10 Robot/NC 45 | 15 5 25 Destroy Leader 76 | . 22 54 Successful Hack 4 | . 4 . Disable Machine 30 | . . 30 Destroy Structure 139 | . 44 95 Lose Combat Pursuer 30 | . 15 15 Influence Decreases 436 | 15 138 283 Entered New Map 43 | . . 43 Time Decay 303 | 15 138 150 Lost Part 90 | . . 90 Squads Dispatched 4 | . 1 3 Investigation 1 | . . 1 Extermination . | . . . Reinforcement 3 | . 1 2 Assault . | . . . Garrison . | . . . Intercept . | . . . Searches Triggered . | . . . Construction Impeded 1 | . . 1 Haulers Reinforced . | . . . Active Scanning Responses . | . . . Cargo Convoy Interrupts . | . . . Stealth | -11 -10 -9 --------- Run | Yrd Mat Mat Distress Signals 4 | . . 4 Communications Jammed . | . . . Distress Signals . | . . . Times Spotted 22 | . 8 14 Peak Tracking Total 5 | . 2 5 Tactical Retreats 2 | . 1 1 Traps | -11 -10 -9 ------- Run | Yrd Mat Mat Traps Triggered . | . . . Indirectly . | . . . Trap Hack Attempts . | . . . Triggered . | . . . Disarmed . | . . . Reprogrammed . | . . . Reused . | . . . Traps Extracted . | . . . Installed . | . . . Triggered . | . . . Machines | -11 -10 -9 ---------- Run | Yrd Mat Mat Machines Disabled 2 | . . 2 Max in Single Turn 1 | . . 1 Machines Repaired . | . . . Machines Dismantled . | . . . Machines Sabotaged . | . . . Overloaded Fab Kills . | . . . Hacking | -11 -10 -9 --------- Run | Yrd Mat Mat Machines Accessed 3 | . 2 1 Terminals 3 | . 2 1 Fabricators . | . . . Repair Stations . | . . . Recycling Units . | . . . Scanalyzers . | . . . Garrison Access . | . . . Total Hacks 8 | . 3 5 Successful 3 | . 2 1 Failed 5 | . 1 4 Catastrophic . | . . . Database Lockouts . | . . . Manual . | . . . Terminals 8 | . 3 5 Fabricators . | . . . Repair Stations . | . . . Recycling Units . | . . . Scanalyzers . | . . . Garrison Access . | . . . Terminal Hacks 3 | . 2 1 Locate Traps 2 | . 1 1 Dispatch Records 1 | . 1 . Fabricator Hacks . | . . . Repair Station Hacks . | . . . Recycling Unit Hacks . | . . . Scanalyzer . | . . . Garrison Access Hacks . | . . . Unauthorized Hacks . | . . . Terminals . | . . . Fabricators . | . . . Repair Stations . | . . . Recycling Units . | . . . Scanalyzers . | . . . Garrison Access . | . . . Data Cores Recovered 1 | . . 1 Used . | . . . Hacking Detections 1 | . . 1 Full Trace Events . | . . . Feedback Events . | . . . Feedback Blocked . | . . . Robot Schematics Acquired . | . . . Robots Built . | . . . Authchips . | . . . Time . | . . . Total Robot Build Rating . | . . . Part Schematics Acquired . | . . . Parts Built . | . . . Authchips . | . . . Time . | . . . Total Part Build Rating . | . . . Part Studies Acquired . | . . . Parts Repaired . | . . . Time . | . . . Parts Recycled . | . . . Recycled Matter . | . . . Retrieved Matter . | . . . Retrieved Components . | . . . Parts Scanalyzed . | . . . Part Schematics Acquired . | . . . Parts Damaged . | . . . Bothacking | -11 -10 -9 ------------ Run | Yrd Mat Mat Used RIF Installer . | . . . Robots Hacked . | . . . Non-combat . | . . . Combat . | . . . Robot Hacks Applied . | . . . Relay Couplers Released . | . . . Fabnet Peak Effective % . | . . . Robots Rewired . | . . . Allies Hacked . | . . . Hacks Repelled . | . . . Allies | -11 -10 -9 -------- Run | Yrd Mat Mat Total Allies . | . . . Largest Group . | . . . Highest-Rated Group . | . . . Highest-Rated Ally . | . . . Total Orders . | . . . Ally Attacks . | . . . Total Damage . | . . . Kills . | . . . Allies Corrupted . | . . . Allies Melted . | . . . Intel | -11 -10 -9 ------- Run | Yrd Mat Mat Active Infowar (turns) 60 | 21 39 . Seismic 60 | 21 39 . Robot Analysis Total . | . . . Derelict Logs Recovered . | . . . Drone Launches . | . . . Drone Recoveries . | . . . Exploration | -11 -10 -9 ------------- Run | Yrd Mat Mat Turns Passed 791 | 136 347 308 Spaces Moved 568 | 88 346 134 Core 16 | 8 . 8 Treads 33 | . . 33 Legs 33 | . . 33 Wheels 486 | 80 346 60 Hover . | . . . Flight . | . . . Fastest Speed 50 | 50 80 80 Average Speed 93 | 81 80 136 Slowest Speed 250 | 90 80 250 Overloaded Moves . | . . . Propulsion Burnouts . | . . . Robots Hopped . | . . . Potential Cave-ins . | . . . Cave-ins Triggered . | . . . Exploration Rate (%) 29 | 5 63 19 Regions Visited 2 Branch Regions . Pre-discovered Areas . | . . . Known Exits Taken . | . . . Unknown Exits Taken 2 | 1 1 . Scrap Searched . | . . . Spaces Dug 11 | . . 11 Terrain Destroyed 159 | . 41 118 Melee . | . . . Projectile . | . . . AOE 159 | . 41 118 Terrain Rammed . | . . . Walls Destroyed . | . . . Machines Disabled . | . . . Actions | -11 -10 -9 --------- Run | Yrd Mat Mat Total 727 | 128 390 209 Wait 6 | 2 2 2 Move 566 | 87 345 134 Hop . | . . . Pick Up 22 | 9 8 5 Fast Attach 2 | . 1 1 Attach 14 | 7 . 7 Detach 1 | . . 1 Swap 7 | 1 5 1 Drop 5 | . 4 1 Fire 85 | 22 25 38 Melee . | . . . Ram . | . . . Kick . | . . . Crush 19 | . . 19 Escape Stasis . | . . . Rewire . | . . . Trap . | . . . Miscellaneous . | . . . Route ------- -11/Scrapyard -10/Materials (discovered 3 exits: *Mat x2 / [*Min]) -9/Materials History --------- Turn | Location | Event 7 | -11/Scrapyard | Discovered new exit (range 16) 137 | -11/Scrapyard | Entered Materials 232 | -10/Materials | Discovered new exit (range 13) 316 | -10/Materials | Build established: Mutant 318 | -10/Materials | Discovered new exit (range 16) 474 | -10/Materials | Discovered new exit (range 12) 484 | -10/Materials | Entered another Materials area 484 | -9/Materials | Evolved 2 slots: Propulsion x2 639 | -9/Materials | Core integrity fell below 50% 659 | -9/Materials | Core integrity fell below 20% 683 | -9/Materials | Lost 3 parts (1p1n1w) 792 | -9/Materials | Destroyed by G-34 Mercenary with Small Laser Last Messages --------------- Acquired 33 matter. U-05 Engineer lays Concrete. U-05 Engineer builds a Door. U-05 Engineer builds a Wall. U-05 Engineer lays Concrete. U-05 Engineer builds a Wall. U-05 Engineer lays Concrete. The unstable cave ceiling collapses. W-16 Scout sends out distress signal. [Achievement: Oops] Slammed into G-34 Mercenary. Ion Engine destroyed. Slammed into G-34 Mercenary. Hvy. Assault Rifle destroyed. Slammed into G-34 Mercenary. Crushed G-34 Mercenary. G-34 Mercenary destroyed. Slammed into G-34 Mercenary. Lgt. Treads destroyed. Slammed into G-34 Mercenary. Map ----- +----------------------------------------------------+ | ?????????????????????????????????????????????????? | | ?????????????????????????????????????????????????? | | ?????????????????????????????????????????????????? | | ?????????????????????????????????????????????????? | | ?????????????????????????????????????????????????? | | ?????????????????????????????????????????????????? | | ?????????????????????????????????????????????????? | | ?????????????????????????????????????????????????? | | ?????????????????????????????????????????????????? | | ?????????????????????????????????????????????????? | | ?????????????????????????????????????????????????? | | ?????????????????????????????????????????????????? | | ?????????????????????????????????????????????????? | | ?????????????????????????????????????????????????? | | ???????????????????????##????????????????????????? | | ??????????????????????? ????????????????????????? | | ??????????????????????? ????????????????????????? | | ??????????????????????? ????????????????????????? | | ??????????????????????? #???????????????????????? | | ???????????????????????# #???????????????????????? | | ???????????????????????# #???????????????????????? | | ???????????????????????# #???????????????????????? | | ???????????????????????# #???????????????????????? | | ???????????????????????# #####???????? #?????????? | | ???????????????######### ####### #?????????? | | ???????????????# ! #g@ #?????????? | | ???????????????# + T #?????????? | | ?????????####### !! # #?????????? | | ?????????# # !! # ## ###?????????? | | ?????????# # ! #######??? #???????????? | | ?????????# " #??????????? !#???????????? | | ?????????# # #?????????????#???????????? | | ?????????# # "S #?????????????????????????? | | ?????????## ## """ #?????????????????????????? | | ??######### ## "" #?????????????????????????? | | ??# # ## #?????????????????????????? | | ??# ! + #### #####?????????????????????????? | | ??# # ##########?????????????????????????? | | ########## # #?????????????????????????? | | #???### # """ #?????????????????????????? | | #???# * # """ #?????????????????????????? | | T #???# * *# " #?????????????????????????? | | #???# * # #?????????????????????????? | | #???# + #######???????????????????? | | ######## # # """ ???????????????????? | | # """ # # # ## """"???????????????????? | | # """ # ## """? ?????????????????? | | + """ # # # "" #????????????????? | | # # ## " #????????????????? | | # # ### #????????????????? | +----------------------------------------------------+ Best States ------------- Heat Dissipation 28 Energy Generation 14 Energy Capacity 280 Matter Stores 236 Matter Capacity 400 Sight Range 16 Terrain Scan Density 10 Armor Coverage 150 Evasion (%) 55 Recoil Reduction 3 Item Schematics ----------------- None Robot Schematics ------------------ None Fabricated ------------ Nothing Repaired ---------- Nothing Studied --------- None Alien Tech Used ----------------- None Achievements -------------- Oops Challenges ------------ None Game ------ Seed ArmageddonDroneFlakker Manual? 0 Play Time 00:19:32 Cumulative 4.3 hours Start 2025.11.02 @ 12:19:41 End 2025.11.02 @ 12:37:44 Sessions 1 Manual Loads 0 Difficulty Rogue Special Mode None Game No. 9 Rogue 9 Adventurer 0 Explorer 0 Win Type - Total 0 Types 0/0/0/0/0/0/0/0/0/0 Lore% 2 Gallery% 10 Achievement% 8 Wizard Run 0 Options --------- Layout 1 ASCII 0 Keyboard 0 Movement Mouse Keybinds 0 Fullscreen 2 Font 24/Proggy Map View 50x35 Zoom Use 0% Tactical HUD 0 Map Filters NONE Filters NONE Steam 1 RUN: 86599a55-34ff-4f27-b8ea-839f55868724